[Event "South Island Championships 2023"]
[Site "Oamaru, New Zealand"]
[Date "????.??.??"]
[Round "7.5"]
[White "Liu, William Rui"]
[Black "Cummings, Nick"]
[Result "0-1"]
[TimeControl "90 + 30"]
[WhiteFideId "4313593"]
[BlackFideId "4301218"]
[WhiteElo "2094"]
[BlackElo "2094"]

1. e4 {[%clk 01:30:43]} {[%emt 00:00:16]} c6 {[%clk 01:30:48]} {[%emt
00:00:13]} 2. d4 {[%clk 01:31:07]} {[%emt 00:00:06]} d5 {[%clk 01:31:16]}
{[%emt 00:00:02]} 3. exd5 {[%clk 01:31:30]} {[%emt 00:00:08]} cxd5 {[%clk
01:31:45]} 4. Bd3 {[%clk 01:31:50]} {[%emt 00:00:09]} Nc6 {[%clk 01:32:09]}
{[%emt 00:00:06]} 5. c3 {[%clk 01:32:13]} {[%emt 00:00:07]} Qc7 {[%clk
01:32:35]} {[%emt 00:00:04]} 6. h3 {[%clk 01:32:10]} {[%emt 00:00:33]} g6
{[%clk 01:32:13]} {[%emt 00:00:51]} 7. Nf3 {[%clk 01:32:25]} {[%emt 00:00:15]}
Bf5 {[%clk 01:32:13]} {[%emt 00:00:30]} 8. O-O {[%clk 01:32:06]} {[%emt
00:00:49]} Bxd3 {[%clk 01:31:40]} {[%emt 00:01:04]} 9. Qxd3 {[%clk 01:32:28]}
{[%emt 00:00:08]} Nf6 {[%clk 01:31:12]} {[%emt 00:00:57]} 10. Ne5 {[%clk
01:31:04]} {[%emt 00:01:55]} e6 {[%clk 01:25:08]} {[%emt 00:06:34]} 11. Nd2
{[%clk 01:26:09]} {[%emt 00:05:25]} Nxe5 {[%clk 01:20:39]} {[%emt 00:05:00]} 12.
dxe5 {[%clk 01:26:25]} {[%emt 00:00:13]} Nd7 {[%emt 00:05:11]} 13. Nf3 {[%clk
01:25:24]} Bg7 {[%clk 01:14:44]} {[%emt 00:03:12]} 14. Bf4 {[%clk 01:23:08]}
{[%emt 00:02:47]} Nxe5 {[%clk 01:04:17]} {[%emt 00:10:57]} 15. Bxe5 {[%clk
01:04:34]} {[%emt 00:19:05]} Bxe5 {[%clk 01:04:26]} {[%emt 00:00:20]} 16. Rfe1
{[%clk 01:03:20]} {[%emt 00:01:45]} Bf6 {[%clk 01:00:14]} {[%emt 00:04:41]} 17.
Qxd5 {[%clk 01:03:22]} {[%emt 00:00:29]} O-O {[%clk 01:00:06]} {[%emt
00:00:37]} 18. Qe4 {[%clk 01:03:04]} {[%emt 00:00:48]} Rfd8 {[%clk 00:59:34]}
{[%emt 00:01:01]} 19. Rad1 {[%clk 01:02:07]} {[%emt 00:01:28]} a6 {[%clk
00:54:32]} {[%emt 00:05:32]} 20. a4 {[%clk 00:58:06]} {[%emt 00:04:31]} Qb6
{[%clk 00:48:15]} {[%emt 00:06:43]} 21. Qf4 {[%clk 00:55:01]} {[%emt 00:03:38]}
Kg7 {[%clk 00:46:57]} {[%emt 00:01:48]} 22. Rb1 {[%clk 00:52:25]} {[%emt
00:03:07]} Rac8 {[%clk 00:45:17]} {[%emt 00:02:09]} 23. h4 {[%clk 00:51:00]}
{[%emt 00:01:56]} h5 {[%clk 00:39:51]} {[%emt 00:05:54]} 24. Ng5 {[%clk
00:38:56]} {[%emt 00:12:36]} Rd5 {[%clk 00:34:19]} {[%emt 00:06:00]} 25. Re3
{[%clk 00:21:14]} {[%emt 00:18:14]} Rf5 {[%clk 00:25:09]} {[%emt 00:09:37]} 26.
Qg3 {[%clk 00:17:14]} {[%emt 00:04:32]} Bxg5 {[%clk 00:24:43]} {[%emt
00:00:56]} 27. hxg5 {[%clk 00:17:12]} {[%emt 00:00:32]} Rc4 {[%clk 00:20:26]}
{[%emt 00:04:46]} 28. Rf3 {[%clk 00:01:57]} {[%emt 00:15:47]} Rg4 {[%clk
00:19:31]} {[%emt 00:01:24]} 29. Qh3 {[%clk 00:02:09]} {[%emt 00:00:19]} Rfxg5
{[%clk 00:17:15]} {[%emt 00:02:45]} 30. Rd1 {[%clk 00:01:54]} {[%emt 00:00:46]}
Rxg2+ {[%clk 00:09:14]} {[%emt 00:08:30]} 31. Qxg2 Rxg2+ {[%clk 00:09:37]} 32.
Kxg2 {[%clk 00:02:28]} {[%emt 00:00:05]} Qc6 {[%clk 00:10:00]} {[%emt
00:00:07]} 33. Rd4 {[%clk 00:00:53]} {[%emt 00:02:04]} g5 {[%clk 00:10:24]}
{[%emt 00:00:07]} 34. Kg3 {[%clk 00:00:53]} {[%emt 00:00:30]} h4+ {[%clk
00:10:00]} {[%emt 00:00:54]} 35. Kg2 {[%clk 00:00:36]} {[%emt 00:00:48]} f5
{[%clk 00:10:00]} {[%emt 00:00:30]} 0-1

[Event "South Island Championships 2023"]
[Site "Oamaru, New Zealand"]
[Date "????.??.??"]
[Round "7.10"]
[White "Malcolm, Leo"]
[Black "Van Der Krogt, Adrian"]
[Result "1-0"]
[TimeControl "90 + 30"]
[WhiteFideId "4317408"]
[BlackFideId "4319567"]
[WhiteElo "1876"]
[BlackElo "1707"]

1. e4 {[%clk 01:30:58]} {[%emt 00:00:02]} e6 {[%clk 01:30:24]} {[%emt
00:00:37]} 2. d4 {[%clk 01:31:14]} {[%emt 00:00:14]} d5 {[%clk 01:30:52]}
{[%emt 00:00:01]} 3. e5 {[%clk 01:31:37]} {[%emt 00:00:07]} c5 {[%clk
01:30:47]} {[%emt 00:00:35]} 4. c3 {[%clk 01:32:03]} {[%emt 00:00:04]} Nc6
{[%clk 01:30:45]} {[%emt 00:00:32]} 5. Nf3 {[%clk 01:32:28]} {[%emt 00:00:05]}
Qb6 {[%clk 01:30:11]} {[%emt 00:01:04]} 6. Bd3 {[%clk 01:32:53]} {[%emt
00:00:05]} Bd7 {[%clk 01:30:33]} {[%emt 00:00:09]} 7. dxc5 {[%clk 01:33:07]}
{[%emt 00:00:16]} Bxc5 {[%clk 01:30:30]} {[%emt 00:00:33]} 8. O-O {[%clk
01:33:31]} {[%emt 00:00:05]} Qc7 {[%clk 01:26:24]} {[%emt 00:04:36]} 9. Qe2
{[%clk 01:30:58]} {[%emt 00:03:02]} Nge7 {[%clk 01:21:17]} {[%emt 00:05:37]} 10.
Bf4 {[%clk 01:28:06]} {[%emt 00:03:22]} a5 {[%clk 01:19:17]} {[%emt 00:02:31]}
11. a4 {[%clk 01:23:46]} {[%emt 00:04:50]} h6 {[%clk 01:16:04]} {[%emt
00:03:42]} 12. h4 {[%clk 01:21:33]} {[%emt 00:02:43]} Qb6 {[%clk 01:08:49]}
{[%emt 00:07:45]} 13. Na3 {[%clk 01:14:45]} {[%emt 00:07:18]} Bxa3 {[%clk
01:02:42]} {[%emt 00:06:36]} 14. Rxa3 {[%clk 01:14:17]} {[%emt 00:00:58]} Ng6
{[%clk 00:57:57]} {[%emt 00:05:16]} 15. Be3 {[%clk 01:11:28]} {[%emt 00:03:18]}
Qc7 {[%clk 00:58:18]} {[%emt 00:00:10]} 16. Bxg6 {[%clk 01:11:34]} {[%emt
00:00:24]} fxg6 {[%clk 00:58:47]} {[%emt 00:00:01]} 17. Qc2 {[%clk 01:11:53]}
{[%emt 00:00:11]} Ne7 {[%clk 00:57:54]} {[%emt 00:01:23]} 18. Rd1 {[%clk
01:08:31]} {[%emt 00:03:51]} O-O {[%clk 00:55:33]} {[%emt 00:02:52]} 19. Rd4
{[%clk 00:58:19]} {[%emt 00:10:42]} Rf5 {[%clk 00:50:51]} {[%emt 00:05:12]} 20.
c4 {[%clk 00:54:35]} {[%emt 00:04:14]} Bc6 {[%clk 00:37:15]} {[%emt 00:14:06]}
21. Rg4 {[%clk 00:50:41]} {[%emt 00:04:24]} Rc8 {[%clk 00:30:26]} {[%emt
00:07:19]} 22. Nd4 {[%clk 00:47:02]} {[%emt 00:04:09]} Rxe5 {[%clk 00:30:31]}
{[%emt 00:00:25]} 23. f4 {[%clk 00:46:48]} {[%emt 00:00:44]} Re4 {[%clk
00:29:41]} {[%emt 00:01:20]} 24. c5 {[%clk 00:28:28]} {[%emt 00:18:50]} Bd7
{[%clk 00:27:42]} {[%emt 00:02:29]} 25. Nb5 {[%clk 00:27:50]} {[%emt 00:01:08]}
Bxb5 {[%clk 00:21:40]} {[%emt 00:06:31]} 26. axb5 {[%clk 00:28:19]} {[%emt
00:00:02]} Nf5 {[%clk 00:20:06]} {[%emt 00:02:04]} 27. Bf2 {[%clk 00:25:23]}
{[%emt 00:03:26]} Rc4 {[%clk 00:12:35]} {[%emt 00:08:00]} 28. Qe2 {[%clk
00:24:32]} {[%emt 00:01:22]} Re4 {[%clk 00:12:41]} {[%emt 00:00:24]} 29. Qd3
{[%clk 00:24:47]} {[%emt 00:00:15]} Rxf4 {[%clk 00:10:56]} {[%emt 00:02:14]} 30.
Rxg6 {[%clk 00:23:57]} {[%emt 00:01:21]} Nxh4 {[%clk 00:10:17]} {[%emt
00:01:10]} 31. Rxe6 {[%clk 00:20:06]} {[%emt 00:04:19]} Rxf2 {[%clk 00:06:02]}
{[%emt 00:04:46]} 32. Kxf2 {[%clk 00:19:43]} {[%emt 00:00:53]} Rf8+ {[%clk
00:05:13]} {[%emt 00:01:19]} 33. Kg1 {[%clk 00:11:36]} {[%emt 00:08:36]} Qxc5+
{[%clk 00:05:29]} {[%emt 00:00:15]} 34. Kh2 {[%clk 00:10:33]} {[%emt 00:01:32]}
Qc7+ {[%clk 00:03:48]} {[%emt 00:02:11]} 35. Qg3 {[%clk 00:09:23]} {[%emt
00:01:41]} Qd7 {[%clk 00:03:06]} {[%emt 00:01:12]} 36. Re5 {[%clk 00:06:20]}
{[%emt 00:03:33]} Nf5 {[%clk 00:03:12]} {[%emt 00:00:23]} 37. Qd3 {[%clk
00:05:50]} {[%emt 00:01:01]} d4 {[%clk 00:03:18]} {[%emt 00:00:23]} 38. Rxa5
{[%clk 00:04:38]} {[%emt 00:01:43]} Qc7 {[%clk 00:03:33]} {[%emt 00:00:16]} 39.
b6 {[%clk 00:05:03]} {[%emt 00:00:04]} Qxb6 {[%clk 00:03:08]} {[%emt 00:00:55]}
40. Rxf5 {[%clk 00:04:36]} {[%emt 00:00:57]} Re8 {[%clk 00:02:13]} {[%emt
00:01:25]} 41. Rab5 {[%clk 00:03:40]} {[%emt 00:01:26]} Qd6+ {[%clk 00:02:27]}
{[%emt 00:00:15]} 42. Qg3 {[%clk 00:03:44]} {[%emt 00:00:26]} Qc6 {[%clk
00:02:07]} {[%emt 00:00:50]} 43. Rbc5 {[%clk 00:03:53]} {[%emt 00:00:22]} Qb6
{[%clk 00:02:15]} {[%emt 00:00:22]} 44. Rc7 {[%clk 00:04:06]} {[%emt 00:00:17]}
g5 {[%clk 00:01:52]} {[%emt 00:00:53]} 45. Rxg5+ {[%clk 00:04:25]} {[%emt
00:00:10]} Kh8 {[%clk 00:01:55]} {[%emt 00:00:28]} 46. Rg8+ {[%clk 00:04:31]}
{[%emt 00:00:24]} Rxg8 {[%clk 00:02:20]} {[%emt 00:00:04]} 47. Qe5+ {[%clk
00:04:58]} {[%emt 00:00:22]} 1-0

[Event "South Island Championships 2023"]
[Site "Oamaru, New Zealand"]
[Date "2023.09.30"]
[Round "8.10"]
[White "Holdo, Karl"]
[Black "Summers, Paul G"]
[Result "1-0"]
[TimeControl "90 + 30"]
[WhiteFideId "4304586"]
[BlackFideId "3232883"]
[WhiteElo "1551"]
[BlackElo "1799"]

1. e4 {[%clk 01:30:56]} {[%emt 00:00:03]} e5 {[%clk 01:30:56]} {[%emt
00:00:05]} 2. Nf3 {[%clk 01:31:19]} {[%emt 00:00:07]} Nc6 {[%clk 01:31:16]}
{[%emt 00:00:10]} 3. Bc4 {[%clk 01:31:35]} {[%emt 00:00:13]} Bc5 {[%clk
01:31:41]} {[%emt 00:00:06]} 4. c3 {[%clk 01:31:49]} {[%emt 00:00:15]} Nf6
{[%clk 01:32:03]} {[%emt 00:00:09]} 5. d3 {[%clk 01:32:09]} {[%emt 00:00:08]}
d6 {[%clk 01:32:27]} {[%emt 00:00:07]} 6. Nbd2 {[%clk 01:31:41]} {[%emt
00:00:58]} O-O {[%clk 01:32:39]} {[%emt 00:00:18]} 7. O-O {[%clk 01:30:15]}
{[%emt 00:01:56]} a6 {[%clk 01:32:38]} {[%emt 00:00:32]} 8. Bb3 {[%clk
01:30:32]} {[%emt 00:00:12]} h6 {[%clk 01:29:22]} {[%emt 00:03:45]} 9. h3
{[%clk 01:29:46]} {[%emt 00:01:15]} b5 {[%clk 01:28:37]} {[%emt 00:01:17]} 10.
Re1 {[%clk 01:25:56]} {[%emt 00:04:20]} Be6 {[%clk 01:27:08]} {[%emt 00:01:59]}
11. Nf1 {[%clk 01:24:20]} {[%emt 00:02:05]} Qd7 {[%clk 01:23:49]} {[%emt
00:03:50]} 12. Ng3 {[%clk 01:21:05]} {[%emt 00:03:44]} Bxh3 {[%clk 01:15:01]}
{[%emt 00:09:19]} 13. gxh3 {[%clk 01:20:56]} {[%emt 00:00:38]} Qxh3 {[%clk
01:15:25]} {[%emt 00:00:06]} 14. Be3 {[%clk 01:21:09]} {[%emt 00:00:16]} Bxe3
{[%clk 01:14:46]} {[%emt 00:01:10]} 15. Rxe3 {[%clk 01:21:01]} {[%emt
00:00:38]} g5 {[%clk 01:12:08]} {[%emt 00:03:08]} 16. Qf1 {[%clk 01:19:56]}
{[%emt 00:01:34]} Qd7 {[%clk 01:10:49]} {[%emt 00:01:50]} 17. Nf5 {[%clk
01:19:04]} {[%emt 00:01:20]} g4 {[%clk 01:08:46]} {[%emt 00:02:36]} 18. N3h4
{[%clk 01:18:14]} {[%emt 00:01:18]} Kh7 {[%clk 01:07:36]} {[%emt 00:01:41]} 19.
a4 {[%clk 01:12:09]} {[%emt 00:06:36]} b4 {[%clk 01:07:09]} {[%emt 00:00:58]}
20. a5 {[%clk 01:11:30]} {[%emt 00:01:08]} bxc3 {[%clk 01:05:31]} {[%emt
00:02:08]} 21. bxc3 {[%clk 01:11:50]} {[%emt 00:00:10]} Ne7 {[%clk 01:04:15]}
{[%emt 00:01:45]} 22. Nxe7 {[%clk 01:11:09]} {[%emt 00:01:11]} Qxe7 {[%clk
01:04:24]} {[%emt 00:00:22]} 23. Nf5 {[%clk 01:11:25]} {[%emt 00:00:14]} Qd8
{[%clk 01:04:25]} {[%emt 00:00:29]} 24. d4 {[%clk 01:08:21]} {[%emt 00:03:33]}
Nh5 {[%clk 01:04:00]} {[%emt 00:00:56]} 25. dxe5 {[%clk 01:01:57]} {[%emt
00:06:53]} dxe5 {[%clk 01:00:42]} {[%emt 00:03:49]} 26. Rd1 {[%clk 00:58:07]}
{[%emt 00:04:19]} Qg5 {[%clk 01:00:26]} {[%emt 00:00:47]} 27. Rd7 {[%clk
00:55:50]} {[%emt 00:02:45]} Nf4 {[%clk 01:00:44]} {[%emt 00:00:14]} 28. Bxf7
{[%clk 00:51:17]} {[%emt 00:05:02]} Rad8 {[%clk 00:57:16]} {[%emt 00:03:59]} 29.
Bg6+ {[%clk 00:46:09]} {[%emt 00:05:36]} Kxg6 {[%clk 00:57:40]} {[%emt
00:00:09]} 30. Rg7+ {[%clk 00:45:56]} {[%emt 00:00:42]} Kf6 {[%clk 00:57:43]}
{[%emt 00:00:28]} 31. Rxg5 {[%clk 00:46:14]} {[%emt 00:00:12]} Kxg5 {[%clk
00:58:05]} {[%emt 00:00:07]} 32. Qxa6 {[%clk 00:45:27]} {[%emt 00:01:17]} Rd1+
{[%clk 00:53:52]} {[%emt 00:04:43]} 33. Kh2 {[%clk 00:45:35]} {[%emt 00:00:19]}
Rf6 {[%clk 00:54:20]} {[%emt 00:00:05]} 34. Qb5 {[%clk 00:43:30]} {[%emt
00:02:34]} Rd2 {[%clk 00:52:29]} {[%emt 00:02:22]} 35. Qxe5 {[%clk 00:40:08]}
{[%emt 00:03:52]} Rxf2+ {[%clk 00:51:57]} {[%emt 00:01:03]} 36. Kg1 {[%clk
00:40:22]} {[%emt 00:00:12]} Ng6 {[%clk 00:51:50]} {[%emt 00:00:40]} 37. Qxf6+
{[%clk 00:40:10]} {[%emt 00:00:42]} Kxf6 {[%emt 00:00:15]} 38. Kxf2 {[%emt
00:00:07]} h5 {[%clk 00:51:41]} {[%emt 00:00:17]} 39. a6 {[%clk 00:40:13]}
{[%emt 00:00:27]} 1-0

[Event "South Island Championships 2023"]
[Site "Oamaru, New Zealand"]
[Date "2023.09.30"]
[Round "8.3"]
[White "Lukey, Stephen G"]
[Black "Johnson, Quentin J F"]
[Result "1-0"]
[TimeControl "90 + 30"]
[WhiteFideId "4300386"]
[BlackFideId "4301480"]
[WhiteElo "2307"]
[BlackElo "2089"]

1. d4 {[%clk 01:30:30]} {[%emt 00:15:51]} d5 {[%clk 01:30:56]} {[%emt
00:00:06]} 2. c4 {[%clk 01:31:12]} {[%emt 00:00:17]} e6 {[%clk 01:31:22]}
{[%emt 00:00:04]} 3. Nc3 {[%clk 01:31:04]} {[%emt 00:00:38]} Be7 {[%clk
01:31:47]} {[%emt 00:00:05]} 4. cxd5 {[%clk 01:31:13]} {[%emt 00:00:20]} exd5
{[%clk 01:32:12]} {[%emt 00:00:06]} 5. Bf4 {[%clk 01:31:40]} {[%emt 00:00:04]}
c6 {[%clk 01:31:10]} {[%emt 00:01:32]} 6. e3 {[%clk 01:32:05]} {[%emt
00:00:04]} Bf5 {[%clk 01:31:33]} {[%emt 00:00:08]} 7. g4 {[%clk 01:32:06]}
{[%emt 00:00:28]} Be4 {[%clk 01:30:34]} {[%emt 00:01:30]} 8. Nxe4 {[%clk
01:30:15]} {[%emt 00:02:21]} dxe4 {[%clk 01:30:59]} {[%emt 00:00:05]} 9. Bc4
{[%clk 01:25:33]} {[%emt 00:05:11]} Qa5+ {[%clk 01:30:38]} {[%emt 00:00:52]} 10.
Kf1 {[%clk 01:25:47]} {[%emt 00:00:15]} b5 {[%clk 01:29:10]} {[%emt 00:02:00]}
11. Qb3 {[%clk 01:09:01]} {[%emt 00:17:15]} bxc4 {[%clk 01:28:43]} {[%emt
00:00:57]} 12. Qb7 {[%clk 01:09:16]} {[%emt 00:00:15]} Nf6 {[%clk 01:29:01]}
{[%emt 00:00:12]} 13. Qxa8 {[%clk 01:09:26]} {[%emt 00:00:20]} O-O {[%clk
01:29:17]} {[%emt 00:00:13]} 14. Bxb8 {[%clk 01:07:29]} {[%emt 00:02:26]} c3
{[%clk 01:29:28]} {[%emt 00:00:21]} 15. Qb7 {[%clk 01:03:59]} {[%emt 00:03:59]}
c2 {[%clk 01:23:29]} {[%emt 00:06:29]} 16. Ne2 {[%clk 01:00:56]} {[%emt
00:03:32]} Qd2 {[%clk 01:23:39]} {[%emt 00:00:22]} 17. Qb3 {[%clk 00:55:45]}
{[%emt 00:05:41]} Qd1+ {[%clk 01:22:58]} {[%emt 00:01:11]} 18. Rxd1 {[%clk
00:56:04]} {[%emt 00:00:11]} cxd1=Q+ {[%clk 01:23:22]} {[%emt 00:00:06]} 19.
Qxd1 {[%clk 00:56:26]} {[%emt 00:00:08]} 1-0

[Event "South Island Championships 2023"]
[Site "Oamaru, New Zealand"]
[Date "2023.09.30"]
[Round "8.8"]
[White "Mischke, Andreas"]
[Black "Liu, William Rui"]
[Result "0-1"]
[TimeControl "90 + 30"]
[WhiteFideId "34649840"]
[BlackFideId "4313593"]
[WhiteElo "1680"]
[BlackElo "2094"]

1. e4 {[%clk 01:30:56]} {[%emt 00:00:03]} c5 {[%clk 01:30:51]} {[%emt
00:00:09]} 2. Nc3 {[%clk 01:31:20]} {[%emt 00:00:06]} Nc6 {[%clk 01:31:16]}
{[%emt 00:00:06]} 3. Bb5 {[%clk 01:31:43]} {[%emt 00:00:07]} g6 {[%clk
01:31:21]} {[%emt 00:00:24]} 4. Bxc6 {[%clk 01:31:22]} {[%emt 00:00:51]} dxc6
{[%clk 01:31:28]} {[%emt 00:00:24]} 5. f4 {[%clk 01:31:27]} {[%emt 00:00:24]}
Bg7 {[%clk 01:31:43]} {[%emt 00:00:15]} 6. Nf3 {[%clk 01:31:37]} {[%emt
00:00:21]} Nf6 {[%clk 01:29:33]} {[%emt 00:02:40]} 7. d3 {[%clk 01:31:36]}
{[%emt 00:00:31]} O-O {[%clk 01:29:34]} {[%emt 00:00:29]} 8. O-O {[%clk
01:31:35]} {[%emt 00:00:30]} b6 {[%clk 01:27:56]} {[%emt 00:02:09]} 9. Qe1
{[%clk 01:30:51]} {[%emt 00:01:13]} b5 {[%clk 01:15:15]} {[%emt 00:13:11]} 10.
f5 {[%clk 01:28:54]} {[%emt 00:02:27]} b4 {[%clk 01:08:48]} {[%emt 00:06:57]}
11. e5 {[%clk 01:21:02]} {[%emt 00:08:23]} bxc3 {[%clk 01:03:38]} {[%emt
00:05:40]} 12. exf6 {[%clk 01:21:19]} {[%emt 00:00:12]} Bxf6 {[%clk 01:03:47]}
{[%emt 00:00:21]} 13. b3 {[%clk 01:16:15]} {[%emt 00:05:34]} Bxf5 {[%clk
01:02:29]} {[%emt 00:01:48]} 14. Bh6 {[%clk 01:14:41]} {[%emt 00:02:04]} Re8
{[%clk 01:01:50]} {[%emt 00:01:09]} 15. Qf2 {[%clk 01:08:31]} {[%emt 00:06:40]}
Bg4 {[%clk 00:49:03]} {[%emt 00:13:18]} 16. Be3 {[%clk 00:59:38]} {[%emt
00:09:21]} Bxf3 {[%clk 00:48:15]} {[%emt 00:01:19]} 17. Qxf3 {[%clk 00:59:23]}
{[%emt 00:00:45]} Qd5 {[%clk 00:47:53]} {[%emt 00:00:52]} 18. Qxd5 {[%clk
00:57:23]} {[%emt 00:02:30]} cxd5 {[%clk 00:48:17]} {[%emt 00:00:06]} 19. Bxc5
{[%clk 00:57:39]} {[%emt 00:00:14]} Bg7 {[%clk 00:47:23]} {[%emt 00:01:25]} 20.
Rf4 {[%clk 00:55:01]} {[%emt 00:03:07]} d4 {[%clk 00:45:04]} {[%emt 00:02:49]}
21. Re1 {[%clk 00:54:20]} {[%emt 00:01:11]} e5 {[%clk 00:44:38]} {[%emt
00:00:56]} 22. Rfe4 {[%clk 00:54:19]} {[%emt 00:00:31]} f5 {[%clk 00:44:48]}
{[%emt 00:00:21]} 23. R4e2 {[%clk 00:54:12]} {[%emt 00:00:36]} Kf7 {[%clk
00:44:45]} {[%emt 00:00:33]} 24. Bd6 {[%clk 00:52:31]} {[%emt 00:02:11]} Re6
{[%clk 00:44:42]} {[%emt 00:00:33]} 25. Bc5 {[%clk 00:52:47]} {[%emt 00:00:14]}
Rc6 {[%clk 00:43:11]} {[%emt 00:02:02]} 26. b4 {[%clk 00:49:42]} {[%emt
00:03:35]} a5 {[%clk 00:40:00]} {[%emt 00:03:41]} 27. a3 {[%clk 00:48:53]}
{[%emt 00:01:19]} axb4 {[%clk 00:40:18]} {[%emt 00:00:12]} 28. Bxb4 {[%clk
00:46:25]} {[%emt 00:02:58]} Ke6 {[%clk 00:40:22]} {[%emt 00:00:26]} 29. Rf2
{[%clk 00:44:28]} {[%emt 00:02:27]} Kd5 {[%clk 00:39:39]} {[%emt 00:01:12]} 30.
g4 {[%clk 00:43:39]} {[%emt 00:01:18]} Bh6 {[%clk 00:36:52]} {[%emt 00:03:18]}
31. Kg2 {[%clk 00:40:00]} {[%emt 00:04:09]} Be3 {[%clk 00:36:22]} {[%emt
00:01:01]} 32. Rf3 {[%clk 00:39:45]} {[%emt 00:00:45]} Rf6 {[%clk 00:30:01]}
{[%emt 00:06:45]} 33. Ref1 {[%clk 00:31:53]} {[%emt 00:08:28]} Ra7 {[%clk
00:23:47]} {[%emt 00:06:45]} 34. gxf5 {[%clk 00:30:01]} {[%emt 00:02:20]} gxf5
{[%clk 00:24:08]} {[%emt 00:00:10]} 35. Rg3 {[%clk 00:21:16]} {[%emt 00:09:14]}
Raf7 {[%clk 00:20:30]} {[%emt 00:04:09]} 36. Rg8 {[%clk 00:20:10]} {[%emt
00:01:36]} Rg6+ {[%clk 00:20:41]} {[%emt 00:00:18]} 37. Rxg6 {[%clk 00:20:33]}
{[%emt 00:00:06]} hxg6 {[%clk 00:21:07]} {[%emt 00:00:05]} 38. Re1 {[%clk
00:13:37]} {[%emt 00:07:27]} Bd2 {[%clk 00:19:58]} {[%emt 00:01:38]} 39. Rg1
{[%clk 00:11:51]} {[%emt 00:02:16]} g5 {[%clk 00:19:58]} {[%emt 00:00:30]} 40.
Ra1 {[%clk 00:10:35]} {[%emt 00:01:47]} e4 {[%clk 00:19:34]} {[%emt 00:00:53]}
41. dxe4+ {[%clk 00:10:29]} {[%emt 00:00:36]} fxe4 {[%clk 00:19:56]} {[%emt
00:00:08]} 42. Rd1 {[%clk 00:08:24]} {[%emt 00:02:35]} e3 {[%clk 00:19:50]}
{[%emt 00:00:36]} 43. Rf1 {[%clk 00:08:24]} {[%emt 00:00:29]} Rxf1 {[%clk
00:19:30]} {[%emt 00:00:51]} 44. Kxf1 {[%clk 00:08:49]} {[%emt 00:00:05]} d3
{[%clk 00:19:58]} {[%emt 00:00:02]} 45. cxd3 {[%clk 00:08:10]} {[%emt
00:01:09]} c2 {[%clk 00:20:25]} {[%emt 00:00:03]} 46. Bxd2 {[%clk 00:07:53]}
{[%emt 00:00:47]} exd2 {[%clk 00:20:49]} {[%emt 00:00:06]} 0-1

[Event "South Island Championships 2023"]
[Site "Oamaru, New Zealand"]
[Date "2023.09.30"]
[Round "8.5"]
[White "Christie, Richie"]
[Black "Stark, John"]
[Result "1/2-1/2"]
[TimeControl "90 + 30"]
[WhiteFideId "4307470"]
[BlackFideId "4300963"]
[WhiteElo "1927"]
[BlackElo "2204"]

1. d4 {[%clk 01:30:58]} {[%emt 00:00:02]} Nf6 {[%clk 01:30:59]} {[%emt
00:00:01]} 2. Bf4 {[%clk 01:31:19]} {[%emt 00:00:09]} b6 {[%clk 01:31:26]}
{[%emt 00:00:03]} 3. Nf3 {[%clk 01:31:10]} {[%emt 00:00:39]} Bb7 {[%clk
01:31:50]} {[%emt 00:00:06]} 4. e3 {[%clk 01:31:30]} {[%emt 00:00:10]} d6
{[%clk 01:32:17]} {[%emt 00:00:03]} 5. Nc3 {[%clk 01:29:36]} {[%emt 00:02:25]}
Nbd7 {[%clk 01:32:03]} {[%emt 00:00:43]} 6. Bc4 {[%clk 01:28:46]} {[%emt
00:01:19]} h6 {[%clk 01:30:07]} {[%emt 00:02:26]} 7. d5 {[%clk 01:27:49]}
{[%emt 00:01:28]} g6 {[%clk 01:28:03]} {[%emt 00:02:34]} 8. e4 {[%clk
01:24:00]} {[%emt 00:04:19]} Bg7 {[%clk 01:27:55]} {[%emt 00:00:38]} 9. Qd2
{[%clk 01:22:15]} {[%emt 00:02:16]} a6 {[%clk 01:26:11]} {[%emt 00:02:13]} 10.
a4 {[%clk 01:21:13]} {[%emt 00:01:33]} Ng4 {[%clk 01:20:04]} {[%emt 00:06:36]}
11. O-O {[%clk 01:19:06]} {[%emt 00:02:36]} O-O {[%clk 01:18:40]} {[%emt
00:01:55]} 12. h3 {[%clk 01:15:13]} {[%emt 00:04:23]} Nge5 {[%clk 01:18:56]}
{[%emt 00:00:13]} 13. Nxe5 {[%clk 01:13:40]} {[%emt 00:02:03]} Nxe5 {[%clk
01:19:21]} {[%emt 00:00:06]} 14. Bb3 {[%clk 01:13:30]} {[%emt 00:00:40]} Kh7
{[%clk 01:19:39]} {[%emt 00:00:12]} 1/2-1/2